Workbook

Sheet Welcome
B2: d`Ik;k igys Macros Enable djsaA
B8: Macro dks Enable djus ds fy, /;ku nhft,] tSls gh vki bl izksxzke dks open djsaxsA ,d Security warning fuEu izdkj fn[kkbZ nsxh& bl Security warning dks Options ij fDyd dj open djsa ,oa Enable this content ij fDyd dj OK djsaA

Sheet from the developer's desk (hidden)
A1: FROM THE DEVELOPER'S DESK
A2: 1- vk;dj x.kuk ds fy, ;g odZcqd dsoy jktLFkku jkT; ds deZpkfj;ksa ds fy, rS;kj dh x;h gSA
A3: 2- bl odZcqd esa iz;qDr fd, x, QksUV Devlys010 ,oa Times New Roman gS] rFkk blesa fuEu lqfo/kk,a miYkC/k gSa&
B5: ¼v½ LVS.MMZ lSysjh 'khV ,oa vk;dj x.kuk 'khV dk vkWVkstusjs'ku
B7: ¼c½ QkWeZ 16 dk vkWVkstusjs'ku
B9: ¼l½ /kkjk 89¼1½ ds vUrxZr iwoZ o"kksZa ds ,fj;j ij iznÙk NwV dh x.kuk ,oa QkWeZ 10E dk vkWVkstusjs'ku
B11: ¼n½ edku fdjk;k NwV ,oa N S C ij ns; C;kt dh x.kuk
A13: 3- izR;sd 'khV ij 'How to use' ls lEcfU/kr dqN fooj.k gS tks dk;Z djrs le; vki ds fy, lgk;d fl+) gksxkA
A15: 4- xr o"kZ dbZ USERS }kjk eglwl dh x;h dfe;ksa ,oa fn, x, lq>koksa dk vf/kdre lekos'k djds iqu% vki yksxksa dh lqfo/kk ds fy, bls izLrqr fd;k tk jgk gSA
A17: 5- bl o"kZ Hkh ;fn vki dksbZ ijs'kkuh eglwl djsa ;k dksbZ lq>ko nsuk pkgsa rks vkidk gkfnZd Lokxr gSA vki eq>s uhps fy[ks bZ&esy irs ij lEidZ dj ldrs gSaA ysfdu d`Ik;k Qksu ij lEidZ ugha djsaA
K18: Keshav Das Gupta Senior Teacher (Science) Govt. Sec. School, Machchhipura Distt. Sawai Madhopur (Raj) kdgupta1971@gmail.com
A19: If any discrepancy is arise for income tax calculation (or any other calculation) by this program, I am not responsible for that.
A21: 6-;fn vki dk;Z djus ds ckn bl QkbZy dks vius uke ls Save djuk pkgsa rks Save as ij tkdj Excel Macro Enabled Workbook ds uke ls Save djsaA
A23: LAST UPDATED | C23: 2015-10-25
A25: What's New:- 1. Personal exemption limit raised from 2 lakh to 2.5 lakh. 2. Investment limit US80C raised from 1 lakh to 1.5 lakh. 3. Deduction limit on account of interest on home loan in respect of self occupied house property raised from 1.5 lakh to 2 lakh. 4. US80CCD(1) deduction limit not exceed Rs 1 lakh. 5. Tax rebate US87A is remained continue which is maximum Rs 2000/-. 6. Section 80TTA, 80CCG are remained unchanged. 24-09-2014 1. RPMF rates updated. 25-10-2015 1. Investment in Sukanya Samriddhi Yojana eligible for section 80C. 2. US80D Health Insurance Premium limit raised from Rs 15000 to 25000. And for Senior citizen it raised from Rs 20000 to 30000. 3. US80DDB limit for very senior citizen raised from Rs 60000 to 80000. 4. US80DD limit raised from Rs 50000 to 75000 and in severe disability it enhanced from Rs 1 lakh to 1.25 lakh. 5. US80U limit raised from Rs 50000 to 75000 and in severe disability it enhanced from Rs 1 lakh to 1.25 lakh. 6. US80CCC investment limit enhanced from Rs 1 lakh to 1.5 lakh. 7. US80CCD(1) Employee contribution towards NPS raised from Rs 1 lakh to 1.5 lakh. 8. A new section 80CCD(1B) inserted. In this section an additional contribution towards NPS Max Rs 50000 allowed. Which is over and above 80C. 9 Section 80TTA, 80CCG and Tax rebate US87A remain unchanged. 10 RPMF and SI rates updated.

Sheet profile (hidden)
A1: INCOME TAX CALCULATION FOR FINANCIAL YEAR 2015-2016 | U1: 1
A2: Developed by Keshav Das Gupta, Senior Teacher (Science), Govt. Sec. School, Machchhipura, Distt. Sawai Madhopur (Rajasthan) | U2: 2
B3: GENERAL INFORMATION | P3: How to use | U3: 3
A4: NAME | B4: KESHAV DAS GUPTA | F4: PAN | K4: G | L4: G | M4: a | N4: a | O4: a | P4: 9 | Q4: 9 | R4: 9 | S4: 9 | T4: b | U4: 4
A5: DESIGNATION | B5: SENIOR TEACHER | F5: NAME OF OFFICE | K5: GOVT SEC SCHOOL, SAWAI MADHOPUR | U5: 5
A6: TAX DEDUCTOR'S NAME | F6: TAX DEDUCTOR'S TAN | U6: 6
A7: TAX DEDUCTOR'S FATHER'S NAME | F7: TAX DEDUCTOR'S PAN | U7: 7
A8: TAX DEDUCTOR'S DESIGNATION | B8: HEAD MASTER | F8: TAX DEDUCTOR'S OFFICE ADDRESS | U8: 8
A9: YOUR BANK ACCOUNT NUMBER | F9: YOUR BANK BRANCH NAME | K9: SBBJ, JOHRI BAZAR JAIPUR | U9: 9
A10: INFORMATION ABOUT SALARY AND ALLOWANCE | U10: 10
A11: SALARY IN MARCH 2015 (Pay band + Grade Pay) | D11: ewy osru esa dksbZ ifjorZu& , lh ih@vU; ¼badzhes.V ds vykok½ ¼ekg dk dzekad nsa½ | J11: fn, x, ekg ds fy, ewy osru ¼is cS.M $ xzsM is½ | U11: 11
A12: H R A (Please select only one option) | B12: ;fn ,p vkj , dk Hkqxrku ugha gksrk gS rks lysDV djsa | F12: 10 izfr'kr ,p vkj , ds fy, lysDV djsa | J12: ;fn vki t;iqj] tks/kiqj] vtesj] chdkusj ;k dksVk esa dk;Zjr gSa rks 20 izfr'kr ds fy, lysDV djsa | U12: 12
A13: C C A (Please select only one option) | B13: ;fn lh lh , dk Hkqxrku ugha gksrk gS rks lysDV djsa | F13: t;iqj ¼'kgjh½ ds fy, lysDV djssa | J13: ;fn vki vtesj] tks/kiqj] chdkusj ;k dksVk esa dk;Zjr gSa rks lysDV djsa | U13: 1
A14: SURRENDER OF PL ¼fdl ekg esa Hkqxrku fy;k½ | B14: 7 | H14: fdrus ekg ds fy, cksul feyk | U14: 2
A15: FOR HRA EXEMPTION ¼okf"kZd Hkqxrku fd, fdjk, dh jkf'k½ | E15: HRA exemption amount | G15: =control!J3 -> 0 | H15: Rent receipt required for max. HRA exempt. | J15: =IF(B15>0,control!C23,"0") -> 0 | M15: vU; HkRrksa dks lSysjh 'khV ij esU;qvyh HkjsaA | U15: 3
A16: ;fn fQDls'ku ,fj;j feyk gS rks ,fj;j dh dqy jkf'k fy[ksaA lEcfU/kr ,fj;j ij Vh Mh ,l dks uhps Hkjsa | B16: FIXATION ARRIERS 1 | D16: FILL TDS (ON ARRIERS 1) IN TDS SECTION BELOW | F16: FIX. ARRIERS 2 | H16: FILL TDS (ON ARRIERS 2) IN TDS SECTION BELOW | J16: ;fn vki dks Mh , ,fj;j ,oa fQDls'ku ,fj;j ds vykok vU; dksbZ ,fj;j feyk gS rks d`i;k lsysjh 'khV dh 24 oha jkW esa esU;wvyh HkjsaA
A18: OTHER INCOME
A19: INCOME FROM HOUSE PROPERTY | B19: RENT RECEIVED | E19: HOUSE TAX | I19: MENDING (30% OF (RENT RECEIVED -HOUSE TAX) | N19: INTEREST ON BONDS
A20: INTEREST ON NSC (AUTOMATED FROM SHEET NSC INTEREST) | B20: =ROUND((SUM('nsc int'!E9:'nsc int'!E14))+SUM('nsc int'!G9:'nsc int'!G13)+SUM('nsc int'!I9:'nsc int'!I13)+SUM('nsc int'!E22:'nsc int'!E31)+SUM('nsc int'!G22:'nsc int'!G31),0) -> 0 | D20: INTEREST ON FDR | I20: INTEREST ON SAVING ACCOUNT | N20: OTHER INCOME
A21: INVESTMENTS
A22: D;k vki u;h isU'ku ;kstuk ds lnL; gSaA ;fn gka rks lysDV djsa | C22: LIC PREMIUM (Deposited Directly) | E22: LIC PREMIUM FROM SALARY | J22: US 80CCD (1B) | M22: US 80 CCG
A23: HOME LOAN CAPITAL | D23: HOME LOAN INTEREST | H23: NSC INTEREST REINVESTMENT | J23: =ROUND((B20-'nsc int'!E14-'nsc int'!G13-'nsc int'!I13-'nsc int'!E31-'nsc int'!G31),0) -> 0 | M23: US 80 CCC
A24: NEW NSC PURCHASE | D24: PLI | H24: SUKANYA SMRIDDHI YOJNA | M24: TUTION FEE
A25: EQUITY LINK SCHEME | D25: NOTIFIED BOND OF NABARD | H25: PPF | M25: ULIP
A26: FIXED DEPOSIT FOR FIVE YEAR OR MORE | D26: DEFERRED ANNUITY | H26: US 80 TTA | J26: =K20 -> 0 | M26: US 80 D
A27: US 80 DD | D27: US 80 DDB | H27: US 80 E | M27: US 80 GG
A28: US 80 G | D28: US 80 GGA | H28: US 80 U | M28: REBATE US 89 (1)
A29: TAX DEDUCTED AT SOURCE
A30: MONTH'S NAME | B30: MARCH | C30: APRIL | D30: MAY | E30: JUNE | F30: JULY | G30: AUG | H30: SEPT | I30: OCT | J30: NOV | K30: DEC | M30: JAN | O30: FEB | Q30: TDS ON ARRIER 1 | S30: TDS ON ARRIER 2 | V30: TDS ON SURRENDER
A31: T D S AMOUNT
A32: Receipt Number of Form No. 24G
A33: DDO Serial Number in Form No. 24G
A34: DATE (dd.mm.yyyy) (Date of transfer voucher)
A35: Receipt Numbers of Original statements of TDS under sub-section (3) of section 200 | B35: QUARTER 1st | E35: QUARTER 2nd | H35: QUARTER 3rd | L35: QUARTER 4th
A36: Amount of tax deducted in respect of the employee | B36: QUARTER 1st | E36: QUARTER 2nd | H36: QUARTER 3rd | L36: QUARTER 4th
A37: INCOME TAX BEFORE TDS | B37: ='I T cal.'!E46 -> 0 | E37: INCOME TAX AFTER TDS | I37: =IF('I T cal.'!E56="0",'I T cal.'!E55,'I T cal.'!E56) -> 0
Q38: Back
A39: How to Use
A41: 1- izksQkby esa okafNr fooj.k HkjsaA ihyh lsYl] QkWeZ 16 ds fy, gSa] vr% ;fn vki dks QkWeZ 16 ugha fudkyuk gks rks ihyh lsYl ugha HkjsaA
A43: 2- ;fn vki edku fdjk, HkÙks dh NwV pkgrs gSa rks jkW ua- 15 esa lsy B15 esa vkidks okf"kZd Hkqxrku fd, fdjk, dh jkf'k nsuh gSA lsy G15 vkidks ml jkf'k ij feyus okyh NwV dh jkf'k crk,xhA lsy J15 esa ml jkf'k dk izn'kZu gksrk gS ftl ij vkidks vf/kdre NwV feysxhA ;g vf/kdre NwV vkidks feyus okys edku fdjk, HkÙks dh okf"kZd jkf'k ds cjkcj gksxhA ysfdu mDr izn'kZu lSysjh 'khV tusjs'ku ds ckn gh gksxkA
A45: 3- lsy B20 o J23, tks NSC ij feyus okys C;kt ls lEcfU/kr gS] dks vkidks ugha Hkjuk gSA NSC ij C;kt x.kuk ds fy, vki 'nsc int' 'khV ij tk,a o okafNr izfof"V;ka HkjsaA
A47: 4- bl 'khV ij fooj.k Hkjus ds i'pkr LVS.MMZ lSysjh 'khV izkIr djus ds fy, d`i;k lSysjh 'khV ij tkdj 'Generate Salary Sheet' cVu dks nckb;sA
A75: =TODAY() -> 2015-10-27 | B75: 2016-10-31

Sheet control (hidden)
A1: CONTROL
A2: Sex | C2: Bonus | D2: 1 | E2: Bonus months | F2: 12 | G2: US 80G | H2: 2 | I2: Salary Round down | J2: =salary!C9*1.03 -> 0 | K2: =--ISNUMBER(FIND(0.1,J2))--ISNUMBER(FIND(0.2,J2))--ISNUMBER(FIND(0.3,J2))--ISNUMBER(FIND(0.4,J2)) -> 0 | L2: ACP MONTH | M2: =profile!H11 -> 0 | N2: Gr. ins. | O2: =IF(salary!C7>=250,"247.19","0") -> 0
C3: =IF(D2=2,0,ROUND((3387*F2/12),0)) -> 3387 | G3: =ROUND(IF(H2=1,profile!B28/2,profile!B28),0) -> 0 | I3: HRA exemption | J3: =IF('HRA ex.'!H11>0,'HRA ex.'!H11,0) -> 0
A4: NO HRA | B4: FALSE | C4: NO CCA | D4: TRUE | G4: CPF | H4: FALSE | I4: SURRENDER | J4: =profile!B14 -> 7 | K4: =ROUND(IF(J4=3,salary!C6/2,IF(J4=4,salary!C7/2,IF(J4=5,salary!C8/2,IF(J4=6,salary!C9/2,IF(J4=7,salary!C10/2,IF(J4=8,salary!C11/2,IF(J4=9,salary!C12/2))))))),0) -> 0 | L4: =ROUND(IF(J4=10,salary!C13/2,IF(J4=11,salary!C14/2,IF(J4=12,salary!C15/2,IF(J4=1,salary!C16/2,IF(J4=2,salary!C17/2))))),0) -> 0 | M4: =IF(OR(J4>9,J4=1,J4=2),L4,IF(J4>2,K4,"0")) -> 0 | N4: =ROUND(IF(OR(J4>8,J4=1,J4=2),M4*1.19,IF(J4=3,M4*1.07,IF(J4>3,M4*1.13,"0"))),0) -> 0
A5: Salary | C5: HRA | E5: CCA | G5: G P F / C P F | L5: S I | O5: Serv. Tax
C6: TRUE | D6: FALSE | E6: FALSE | F6: FALSE | H6: =IF(salary!C6>31000,"5200",IF(salary!C6>28000,"4100",IF(salary!C6>24000,"3300",IF(salary!C6>20000,"2100",IF(salary!C6>15000,"1450",IF(salary!C6>11000,"1100",IF(salary!C6>9000,"650",IF(salary!C6>=6050,"500","0")))))))) -> 0 | I6: =IF(salary!C6>65000,"6200",IF(salary!C6>45000,"5700",H6)) -> 0 | K6: =ROUND(IF($H$4=TRUE,10%*(salary!C6+salary!D6),I6),0) -> 0 | M6: =IF(salary!$C$6>28000,"2650",IF(salary!$C$6>18000,"1550",IF(salary!$C$6>11000,"1100",IF(salary!$C$6>8500,"550",IF(salary!$C$6>=6050,"400","0"))))) -> 0
A7: =IF($M$2=3,profile!$P$11,profile!$B$11) -> 0 | H7: =IF(salary!C7>31000,"5200",IF(salary!C7>28000,"4100",IF(salary!C7>24000,"3300",IF(salary!C7>20000,"2100",IF(salary!C7>15000,"1450",IF(salary!C7>11000,"1100",IF(salary!C7>9000,"650",IF(salary!C7>=6050,"500","0")))))))) -> 0 | I7: =IF(salary!C7>65000,"6200",IF(salary!C7>45000,"5700",H7)) -> 0 | K7: =ROUND(IF($H$4=TRUE,10%*(salary!C7+salary!D7),I7),0) -> 0 | M7: =IF(salary!$C$6>28000,"2650",IF(salary!$C$6>18000,"1550",IF(salary!$C$6>11000,"1100",IF(salary!$C$6>8500,"550",IF(salary!$C$6>=6050,"400","0"))))) -> 0
A8: =IF($M$2=4,profile!$P$11,A7) -> 0 | H8: =IF(salary!C8>31000,"5200",IF(salary!C8>28000,"4100",IF(salary!C8>24000,"3300",IF(salary!C8>20000,"2100",IF(salary!C8>15000,"1450",IF(salary!C8>11000,"1100",IF(salary!C8>9000,"650",IF(salary!C8>=6050,"500","0")))))))) -> 0 | I8: =IF(salary!C8>65000,"6200",IF(salary!C8>45000,"5700",H8)) -> 0 | K8: =ROUND(IF($H$4=TRUE,10%*(salary!C8+salary!D8),I8),0) -> 0 | M8: =IF(salary!$C$6>28000,"2650",IF(salary!$C$6>18000,"1550",IF(salary!$C$6>11000,"1100",IF(salary!$C$6>8500,"550",IF(salary!$C$6>=6050,"400","0"))))) -> 0
A9: =IF($M$2=5,profile!$P$11,A8) -> 0 | H9: =IF(salary!C9>31000,"5200",IF(salary!C9>28000,"4100",IF(salary!C9>24000,"3300",IF(salary!C9>20000,"2100",IF(salary!C9>15000,"1450",IF(salary!C9>11000,"1100",IF(salary!C9>9000,"650",IF(salary!C9>=6050,"500","0")))))))) -> 0 | I9: =IF(salary!C9>65000,"6200",IF(salary!C9>45000,"5700",H9)) -> 0 | K9: =ROUND(IF($H$4=TRUE,10%*(salary!C9+salary!D9),I9),0) -> 0 | M9: =IF(salary!$C$6>28000,"2650",IF(salary!$C$6>18000,"1550",IF(salary!$C$6>11000,"1100",IF(salary!$C$6>8500,"550",IF(salary!$C$6>=6050,"400","0"))))) -> 0
A10: =IF($M$2=6,profile!$P$11,A9) -> 0 | H10: =IF(salary!C10>31000,"5200",IF(salary!C10>28000,"4100",IF(salary!C10>24000,"3300",IF(salary!C10>20000,"2100",IF(salary!C10>15000,"1450",IF(salary!C10>11000,"1100",IF(salary!C10>9000,"650",IF(salary!C10>=6050,"500","0")))))))) -> 0 | I10: =IF(salary!C10>65000,"6200",IF(salary!C10>45000,"5700",H10)) -> 0 | K10: =ROUND(IF($H$4=TRUE,10%*(salary!C10+salary!D10),I10),0) -> 0 | M10: =IF(salary!$C$6>28000,"2650",IF(salary!$C$6>18000,"1550",IF(salary!$C$6>11000,"1100",IF(salary!$C$6>8500,"550",IF(salary!$C$6>=6050,"400","0"))))) -> 0
A11: =IF($M$2=7,profile!$P$11,IF($K$2=1,ROUNDDOWN(J2,-1),ROUNDUP((salary!C9*1.03),-1))) -> 0 | H11: =IF(salary!C11>31000,"5200",IF(salary!C11>28000,"4100",IF(salary!C11>24000,"3300",IF(salary!C11>20000,"2100",IF(salary!C11>15000,"1450",IF(salary!C11>11000,"1100",IF(salary!C11>9000,"650",IF(salary!C11>=6050,"500","0")))))))) -> 0 | I11: =IF(salary!C11>65000,"6200",IF(salary!C11>45000,"5700",H11)) -> 0 | K11: =ROUND(IF($H$4=TRUE,10%*(salary!C11+salary!D11),I11),0) -> 0 | M11: =IF(salary!$C$6>28000,"2650",IF(salary!$C$6>18000,"1550",IF(salary!$C$6>11000,"1100",IF(salary!$C$6>8500,"550",IF(salary!$C$6>=6050,"400","0"))))) -> 0
A12: =IF($M$2=8,profile!$P$11,A11) -> 0 | H12: =IF(salary!C12>31000,"5200",IF(salary!C12>28000,"4100",IF(salary!C12>24000,"3300",IF(salary!C12>20000,"2100",IF(salary!C12>15000,"1450",IF(salary!C12>11000,"1100",IF(salary!C12>9000,"650",IF(salary!C12>=6050,"500","0")))))))) -> 0 | I12: =IF(salary!C12>65000,"6200",IF(salary!C12>45000,"5700",H12)) -> 0 | K12: =ROUND(IF($H$4=TRUE,10%*(salary!C12+salary!D12),I12),0) -> 0 | M12: =IF(salary!$C$6>28000,"2650",IF(salary!$C$6>18000,"1550",IF(salary!$C$6>11000,"1100",IF(salary!$C$6>8500,"550",IF(salary!$C$6>=6050,"400","0"))))) -> 0
A13: =IF($M$2=9,profile!$P$11,A12) -> 0 | H13: =IF(salary!C13>31000,"5200",IF(salary!C13>28000,"4100",IF(salary!C13>24000,"3300",IF(salary!C13>20000,"2100",IF(salary!C13>15000,"1450",IF(salary!C13>11000,"1100",IF(salary!C13>9000,"650",IF(salary!C13>=6050,"500","0")))))))) -> 0 | I13: =IF(salary!C13>65000,"6200",IF(salary!C13>45000,"5700",H13)) -> 0 | K13: =ROUND(IF($H$4=TRUE,10%*(salary!C13+salary!D13),I13),0) -> 0 | M13: =IF(salary!$C$6>28000,"2650",IF(salary!$C$6>18000,"1550",IF(salary!$C$6>11000,"1100",IF(salary!$C$6>8500,"550",IF(salary!$C$6>=6050,"400","0"))))) -> 0
A14: =IF($M$2=10,profile!$P$11,A13) -> 0 | H14: =IF(salary!C14>31000,"5200",IF(salary!C14>28000,"4100",IF(salary!C14>24000,"3300",IF(salary!C14>20000,"2100",IF(salary!C14>15000,"1450",IF(salary!C14>11000,"1100",IF(salary!C14>9000,"650",IF(salary!C14>=6050,"500","0")))))))) -> 0 | I14: =IF(salary!C14>65000,"6200",IF(salary!C14>45000,"5700",H14)) -> 0 | K14: =ROUND(IF($H$4=TRUE,10%*(salary!C14+salary!D14),I14),0) -> 0 | M14: =IF(salary!$C$6>28000,"2650",IF(salary!$C$6>18000,"1550",IF(salary!$C$6>11000,"1100",IF(salary!$C$6>8500,"550",IF(salary!$C$6>=6050,"400","0"))))) -> 0
A15: =IF($M$2=11,profile!$P$11,A14) -> 0 | H15: =IF(salary!C15>31000,"5200",IF(salary!C15>28000,"4100",IF(salary!C15>24000,"3300",IF(salary!C15>20000,"2100",IF(salary!C15>15000,"1450",IF(salary!C15>11000,"1100",IF(salary!C15>9000,"650",IF(salary!C15>=6050,"500","0")))))))) -> 0 | I15: =IF(salary!C15>65000,"6200",IF(salary!C15>45000,"5700",H15)) -> 0 | K15: =ROUND(IF($H$4=TRUE,10%*(salary!C15+salary!D15),I15),0) -> 0 | M15: =IF(salary!$C$6>28000,"2650",IF(salary!$C$6>18000,"1550",IF(salary!$C$6>11000,"1100",IF(salary!$C$6>8500,"550",IF(salary!$C$6>=6050,"400","0"))))) -> 0
A16: =IF($M$2=12,profile!$P$11,A15) -> 0 | H16: =IF(salary!C16>31000,"5200",IF(salary!C16>28000,"4100",IF(salary!C16>24000,"3300",IF(salary!C16>20000,"2100",IF(salary!C16>15000,"1450",IF(salary!C16>11000,"1100",IF(salary!C16>9000,"650",IF(salary!C16>=6050,"500","0")))))))) -> 0 | I16: =IF(salary!C16>65000,"6200",IF(salary!C16>45000,"5700",H16)) -> 0 | K16: =ROUND(IF($H$4=TRUE,10%*(salary!C16+salary!D16),I16),0) -> 0 | M16: =IF(salary!$C$6>28000,"2650",IF(salary!$C$6>18000,"1550",IF(salary!$C$6>11000,"1100",IF(salary!$C$6>8500,"550",IF(salary!$C$6>=6050,"400","0"))))) -> 0
A17: =IF($M$2=1,profile!$P$11,A16) -> 0 | H17: =IF(salary!C17>31000,"5200",IF(salary!C17>28000,"4100",IF(salary!C17>24000,"3300",IF(salary!C17>20000,"2100",IF(salary!C17>15000,"1450",IF(salary!C17>11000,"1100",IF(salary!C17>9000,"650",IF(salary!C17>=6050,"500","0")))))))) -> 0 | I17: =IF(salary!C17>65000,"6200",IF(salary!C17>45000,"5700",H17)) -> 0 | K17: =ROUND(IF($H$4=TRUE,10%*(salary!C17+salary!D17),I17),0) -> 0 | M17: =IF(salary!$C$6>28000,"2650",IF(salary!$C$6>18000,"1550",IF(salary!$C$6>11000,"1100",IF(salary!$C$6>8500,"550",IF(salary!$C$6>=6050,"400","0"))))) -> 0
A18: =IF($M$2=2,profile!$P$11,A17) -> 0
A19: PAN OF EMPLOYEE | C19: =UPPER(CONCATENATE(profile!K4,profile!L4,profile!M4,profile!N4,profile!O4,profile!P4,profile!Q4,profile!R4,profile!S4,profile!T4)) -> GGAAA9999B | F19: HRA | G19: CCA | H19: CCA | I19: CCA | J19: D A | K19: D A Arr. | L19: RPMF
A20: PAN OF EMPLOYER | C20: =UPPER(CONCATENATE(profile!K7,profile!L7,profile!M7,profile!N7,profile!O7,profile!P7,profile!Q7,profile!R7,profile!S7,profile!T7)) ->  | F20: =ROUND(IF($B$4=TRUE,"0",IF($C$6=TRUE,10%*salary!C6,IF($D$6=TRUE,20%*salary!C6,"0"))),0) -> 0 | G20: =IF(salary!C6>9000,480,IF(salary!C6>7000,300,IF(salary!C6>=6050,190,0))) -> 0 | H20: =IF(salary!C6>9000,240,IF(salary!C6>7000,130,IF(salary!C6>=6050,70,0))) -> 0 | I20: =ROUND(IF($D$4=TRUE,"0",IF($E$6=TRUE,G20,IF($F$6=TRUE,H20,"0"))),0) -> 0 | J20: =ROUND((salary!C6*1.07),0) -> 0 | K20: =ROUND((salary!C6*0.06),0)*3+ROUND(IF(J4=3,M4*0.06),0) -> 0 | L20: =IF($H$4=TRUE,"0",IF(salary!C6>21000,"535",IF(salary!C6>13000,"401",IF(salary!C6>7000,"268",IF(salary!C6>=6050,"161","0"))))) -> 0 | M20: March
A21: TAN OF EMPLOYER | C21: =UPPER(CONCATENATE(profile!K6,profile!L6,profile!M6,profile!N6,profile!O6,profile!P6,profile!Q6,profile!R6,profile!S6,profile!T6)) ->  | F21: =ROUND(IF($B$4=TRUE,"0",IF($C$6=TRUE,10%*salary!C7,IF($D$6=TRUE,20%*salary!C7,"0"))),0) -> 0 | G21: =IF(salary!C7>9000,480,IF(salary!C7>7000,300,IF(salary!C7>=6050,190,0))) -> 0 | H21: =IF(salary!C7>9000,240,IF(salary!C7>7000,130,IF(salary!C7>=6050,70,0))) -> 0 | I21: =ROUND(IF($D$4=TRUE,"0",IF($E$6=TRUE,G21,IF($F$6=TRUE,H21,"0"))),0) -> 0 | J21: =ROUND((salary!C7*1.13),0) -> 0 | K21: =IF($H$4=TRUE,ROUND(((ROUND((salary!C6*0.06),0)*3)*0.1),0),K20) -> 0 | L21: =IF($H$4=TRUE,"0",IF(salary!C7>21000,"535",IF(salary!C7>13000,"401",IF(salary!C7>7000,"268",IF(salary!C7>=6050,"161","0"))))) -> 0 | M21: April
F22: =ROUND(IF($B$4=TRUE,"0",IF($C$6=TRUE,10%*salary!C8,IF($D$6=TRUE,20%*salary!C8,"0"))),0) -> 0 | G22: =IF(salary!C8>9000,480,IF(salary!C8>7000,300,IF(salary!C8>=6050,190,0))) -> 0 | H22: =IF(salary!C8>9000,240,IF(salary!C8>7000,130,IF(salary!C8>=6050,70,0))) -> 0 | I22: 0 | J22: =ROUND((salary!C8*1.13),0) -> 0 | K22: =ROUND((salary!C10*0.06),0)+ROUND((salary!C11*0.06),0)+ROUND(IF(OR(J4=7,J4=8),M4*0.06),0) -> 0 | L22: =IF($H$4=TRUE,"0",IF(salary!C8>21000,"565",IF(salary!C8>13000,"424",IF(salary!C8>7000,"283",IF(salary!C8>=6050,"170","0"))))) -> 0 | M22: May
A23: HRA rent receipt req | C23: =ROUND((10%*(ROUND((salary!C6*1.13),0)+ROUND((salary!C7*1.13),0)+ROUND((salary!C8*1.13),0)+ROUND((salary!C9*1.13),0)+ROUND((salary!C10*1.19),0)+ROUND((salary!C11*1.19),0)+ROUND((salary!C12*1.19),0)+ROUND((salary!C13*1.19),0)+ROUND((salary!C14*1.19),0)+ROUND((salary!C15*1.19),0)+ROUND((salary!C16*1.19),0)+ROUND((salary!C17*1.19),0)+SUM(salary!C6:'salary'!C17))+salary!E25),0) -> 0 | F23: =ROUND(IF($B$4=TRUE,"0",IF($C$6=TRUE,10%*salary!C9,IF($D$6=TRUE,20%*salary!C9,"0"))),0) -> 0 | G23: =IF(salary!C9>9000,480,IF(salary!C9>7000,300,IF(salary!C9>=6050,190,0))) -> 0 | H23: =IF(salary!C9>9000,240,IF(salary!C9>7000,130,IF(salary!C9>=6050,70,0))) -> 0 | I23: 0 | J23: =ROUND((salary!C9*1.13),0) -> 0 | K23: =IF($H$4=TRUE,ROUND(((ROUND((salary!C10*0.06),0)+ROUND((salary!C11*0.06),0))*0.1),0),K22) -> 0 | L23: =IF($H$4=TRUE,"0",IF(salary!C9>21000,"565",IF(salary!C9>13000,"424",IF(salary!C9>7000,"283",IF(salary!C9>=6050,"170","0"))))) -> 0 | M23: June
A24: US 80 CCD(1) | C24: =IF(salary!L25<=150000,salary!L25,150000) -> 0 | F24: =ROUND(IF($B$4=TRUE,"0",IF($C$6=TRUE,10%*salary!C10,IF($D$6=TRUE,20%*salary!C10,"0"))),0) -> 0 | G24: =IF(salary!C10>9000,480,IF(salary!C10>7000,300,IF(salary!C10>=6050,190,0))) -> 0 | H24: =IF(salary!C10>9000,240,IF(salary!C10>7000,130,IF(salary!C10>=6050,70,0))) -> 0 | I24: 0 | J24: =ROUND((salary!C10*1.13),0) -> 0 | L24: =IF($H$4=TRUE,"0",IF(salary!C10>21000,"565",IF(salary!C10>13000,"424",IF(salary!C10>7000,"283",IF(salary!C10>=6050,"170","0"))))) -> 0 | M24: July
F25: =ROUND(IF($B$4=TRUE,"0",IF($C$6=TRUE,10%*salary!C11,IF($D$6=TRUE,20%*salary!C11,"0"))),0) -> 0 | G25: =IF(salary!C11>9000,480,IF(salary!C11>7000,300,IF(salary!C11>=6050,190,0))) -> 0 | H25: =IF(salary!C11>9000,240,IF(salary!C11>7000,130,IF(salary!C11>=6050,70,0))) -> 0 | I25: 0 | J25: =ROUND((salary!C11*1.13),0) -> 0 | L25: =IF($H$4=TRUE,"0",IF(salary!C11>21000,"565",IF(salary!C11>13000,"424",IF(salary!C11>7000,"283",IF(salary!C11>=6050,"170","0"))))) -> 0 | M25: August
F26: =ROUND(IF($B$4=TRUE,"0",IF($C$6=TRUE,10%*salary!C12,IF($D$6=TRUE,20%*salary!C12,"0"))),0) -> 0 | G26: =IF(salary!C12>9000,480,IF(salary!C12>7000,300,IF(salary!C12>=6050,190,0))) -> 0 | H26: =IF(salary!C12>9000,240,IF(salary!C12>7000,130,IF(salary!C12>=6050,70,0))) -> 0 | I26: 0 | J26: =ROUND((salary!C12*1.19),0) -> 0 | L26: =IF($H$4=TRUE,"0",IF(salary!C12>21000,"565",IF(salary!C12>13000,"424",IF(salary!C12>7000,"283",IF(salary!C12>=6050,"170","0"))))) -> 0 | M26: Sept
F27: =ROUND(IF($B$4=TRUE,"0",IF($C$6=TRUE,10%*salary!C13,IF($D$6=TRUE,20%*salary!C13,"0"))),0) -> 0 | G27: =IF(salary!C13>9000,480,IF(salary!C13>7000,300,IF(salary!C13>=6050,190,0))) -> 0 | H27: =IF(salary!C13>9000,240,IF(salary!C13>7000,130,IF(salary!C13>=6050,70,0))) -> 0 | I27: 0 | J27: =ROUND((salary!C13*1.19),0) -> 0 | L27: =IF($H$4=TRUE,"0",IF(salary!C13>21000,"595",IF(salary!C13>13000,"447",IF(salary!C13>7000,"298",IF(salary!C13>=6050,"179","0"))))) -> 0 | M27: Oct
F28: =ROUND(IF($B$4=TRUE,"0",IF($C$6=TRUE,10%*salary!C14,IF($D$6=TRUE,20%*salary!C14,"0"))),0) -> 0 | G28: =IF(salary!C14>9000,480,IF(salary!C14>7000,300,IF(salary!C14>=6050,190,0))) -> 0 | H28: =IF(salary!C14>9000,240,IF(salary!C14>7000,130,IF(salary!C14>=6050,70,0))) -> 0 | I28: 0 | J28: =ROUND((salary!C14*1.19),0) -> 0 | L28: =IF($H$4=TRUE,"0",IF(salary!C14>21000,"595",IF(salary!C14>13000,"447",IF(salary!C14>7000,"298",IF(salary!C14>=6050,"179","0"))))) -> 0 | M28: Nov
F29: =ROUND(IF($B$4=TRUE,"0",IF($C$6=TRUE,10%*salary!C15,IF($D$6=TRUE,20%*salary!C15,"0"))),0) -> 0 | G29: =IF(salary!C15>9000,480,IF(salary!C15>7000,300,IF(salary!C15>=6050,190,0))) -> 0 | H29: =IF(salary!C15>9000,240,IF(salary!C15>7000,130,IF(salary!C15>=6050,70,0))) -> 0 | I29: 0 | J29: =ROUND((salary!C15*1.19),0) -> 0 | L29: =IF($H$4=TRUE,"0",IF(salary!C15>21000,"595",IF(salary!C15>13000,"447",IF(salary!C15>7000,"298",IF(salary!C15>=6050,"179","0"))))) -> 0 | M29: Dec
F30: =ROUND(IF($B$4=TRUE,"0",IF($C$6=TRUE,10%*salary!C16,IF($D$6=TRUE,20%*salary!C16,"0"))),0) -> 0 | G30: =IF(salary!C16>9000,480,IF(salary!C16>7000,300,IF(salary!C16>=6050,190,0))) -> 0 | H30: =IF(salary!C16>9000,240,IF(salary!C16>7000,130,IF(salary!C16>=6050,70,0))) -> 0 | I30: 0 | J30: =ROUND((salary!C16*1.19),0) -> 0 | L30: =IF($H$4=TRUE,"0",IF(salary!C16>21000,"595",IF(salary!C16>13000,"447",IF(salary!C16>7000,"298",IF(salary!C16>=6050,"179","0"))))) -> 0 | M30: Jan
F31: =ROUND(IF($B$4=TRUE,"0",IF($C$6=TRUE,10%*salary!C17,IF($D$6=TRUE,20%*salary!C17,"0"))),0) -> 0 | G31: =IF(salary!C17>9000,480,IF(salary!C17>7000,300,IF(salary!C17>=6050,190,0))) -> 0 | H31: =IF(salary!C17>9000,240,IF(salary!C17>7000,130,IF(salary!C17>=6050,70,0))) -> 0 | I31: 0 | J31: =ROUND((salary!C17*1.19),0) -> 0 | L31: =IF($H$4=TRUE,"0",IF(salary!C17>21000,"595",IF(salary!C17>13000,"447",IF(salary!C17>7000,"298",IF(salary!C17>=6050,"179","0"))))) -> 0 | M31: Feb

Sheet Partial HRA (hidden)
B3: PARTIAL HRA EXEMPTION WORK SHEET
B4: MONTHS | C4: "Y" | D4: Basic Pay. | E4: HRA | G4: Please select months by typing "Y"
B5: MARCH 15 | C5: y | D5: =IF(C5="Y",salary!C6+ROUND((113%*salary!C6),0),"0") -> 0 | E5: =IF(C5="Y",salary!E6,"0") -> 0
B6: APRIL 15 | C6: y | D6: =IF(C6="Y",salary!C7+ROUND((113%*salary!C7),0),"0") -> 0 | E6: =IF(C6="Y",salary!E7,"0") -> 0 | G6: After selecting months, give rent paid amount.
B7: MAY 15 | C7: y | D7: =IF(C7="Y",salary!C8+ROUND((113%*salary!C8),0),"0") -> 0 | E7: =IF(C7="Y",salary!E8,"0") -> 0
B8: JUNE 15 | C8: y | D8: =IF(C8="Y",salary!C9+ROUND((113%*salary!C9),0),"0") -> 0 | E8: =IF(C8="Y",salary!E9,"0") -> 0
B9: JULY 15 | C9: y | D9: =IF(C9="Y",salary!C10+ROUND((119%*salary!C10),0),"0") -> 0 | E9: =IF(C9="Y",salary!E10,"0") -> 0 | G9: RENT PAID AMOUNT
B10: AUGUST 15 | C10: y | D10: =IF(C10="Y",salary!C11+ROUND((119%*salary!C11),0),"0") -> 0 | E10: =IF(C10="Y",salary!E11,"0") -> 0 | G10: HRA EXEMPTION AMOUNT | J10: =IF('HRA ex.'!I11>0,'HRA ex.'!I11,"0") -> 0
B11: SEPTEMBER 15 | C11: y | D11: =IF(C11="Y",salary!C12+ROUND((119%*salary!C12),0),"0") -> 0 | E11: =IF(C11="Y",salary!E12,"0") -> 0
B12: OCTOBER 15 | C12: y | D12: =IF(C12="Y",salary!C13+ROUND((119%*salary!C13),0),"0") -> 0 | E12: =IF(C12="Y",salary!E13,"0") -> 0
B13: NOVEMBER 15 | C13: y | D13: =IF(C13="Y",salary!C14+ROUND((119%*salary!C14),0),"0") -> 0 | E13: =IF(C13="Y",salary!E14,"0") -> 0 | G13: Max. HRA exemption amount | J13: =E17 -> 0
B14: DECEMBER 15 | C14: y | D14: =IF(C14="Y",salary!C15+ROUND((119%*salary!C15),0),"0") -> 0 | E14: =IF(C14="Y",salary!E15,"0") -> 0 | G14: Rent receipt required for max. exemption | J14: =ROUND(((10%*D17)+E17),0) -> 0
B15: JANUARY 16 | C15: y | D15: =IF(C15="Y",salary!C16+ROUND((119%*salary!C16),0),"0") -> 0 | E15: =IF(C15="Y",salary!E16,"0") -> 0
B16: FEBRUARY 16 | C16: y | D16: =IF(C16="Y",salary!C17+ROUND((119%*salary!C17),0),"0") -> 0 | E16: =IF(C16="Y",salary!E17,"0") -> 0 | F16: IF YOU ARE NOT ELIGIBLE TO GET HRA EXEMPTION FOR COMPLETE YEAR THEN USE THIS SHEET
D17: =ROUND((SUM(D5:D16)),0) -> 0 | E17: =ROUND((SUM(E5:E16)),0) -> 0

Sheet salary (hidden)
A1: osru o dVkSfr;ksa dk fooj.k 2015 & 2016
A2: =PROPER(IF(profile!B4="","",profile!B4)) -> Keshav Das Gupta | H2: =PROPER(IF(profile!B5="","",profile!B5)) -> Senior Teacher | T2: =PROPER(IF(profile!K5="","",profile!K5)) -> Govt Sec School, Sawai Madhopur
A3: dz- la- | B3: ekg | C3: osru tks fn;k x;k | L3: dVkSfr;ka tks dh x;h | Y3: 'kq} Hkqxrku dh x;h jkf'k | Z3: Vªstjh ckmpj ua- | AA3: Hkqxrku fn-
C4: jfuax is cS.M o xzsM is | D4: Mh , | E4: HRA | F4: 'kgjh {friwfrZ HkÙkk | G4: cksul | H4: ,fj;j | I4: vU; | J4: vU; | K4: ;ksx | L4: =IF(control!$H$4=TRUE,",u ih ,l","th ih ,Q") -> th ih ,Q | M4: th ih ,Q _.k | N4: jkT; chek | O4: lsok dj | P4: jkT; chek _.k | Q4: RPMF | R4: L I C | S4: lokjh vfxze | T4: Hkou _.k | U4: Hkou _.k C;kt | V4: vk; dj | W4: lk nq ch | X4: ;ksx
A5: 1 | B5: 2 | C5: 3 | D5: 4 | E5: 5 | F5: 6 | G5: 7 | H5: 8 | I5: 9 | J5: 10 | K5: 11 | L5: 12 | M5: 13 | N5: 14 | O5: 15 | P5: 16 | Q5: 17 | R5: 18 | S5: 19 | T5: 20 | U5: 21 | V5: 22 | W5: 23 | X5: 24 | Y5: 25 | Z5: 26 | AA5: 27
A6: 1 | B6: ekpZ&15 | C6: =control!A7 -> 0 | D6: =control!J20 -> 0 | E6: =control!F20 -> 0 | F6: =control!I20 -> 0 | K6: =ROUND((C6+D6+E6+F6+G6+H6+I6+J6),0) -> 0 | L6: =control!K6 -> 0 | N6: =control!M6 -> 0 | O6: =control!O6 -> 0 | Q6: =control!L20 -> 0 | R6: =profile!H22 -> 0 | V6: =profile!B31 -> 0 | X6: =L6+M6+N6+O6+P6+Q6+R6+S6+T6+U6+V6+W6 -> 0 | Y6: =K6-X6 -> 0
A7: 2 | B7: vizsy&15 | C7: =control!A8 -> 0 | D7: =control!J21 -> 0 | E7: =control!F21 -> 0 | F7: =control!I21 -> 0 | K7: 0 | L7: =control!K7 -> 0 | N7: =control!M7 -> 0 | O7: =control!O7 -> 0 | Q7: =control!L21 -> 0 | R7: =R6 -> 0 | V7: =profile!C31 -> 0 | W7: =control!O2 -> 0 | X7: 0 | Y7: 0
A8: 3 | B8: ebZ&15 | C8: =control!A9 -> 0 | D8: =control!J22 -> 0 | E8: =control!F22 -> 0 | F8: =control!I22 -> 0 | K8: 0 | L8: =control!K8 -> 0 | N8: =control!M8 -> 0 | O8: =control!O8 -> 0 | Q8: =control!L22 -> 0 | R8: =R7 -> 0 | V8: =profile!D31 -> 0 | X8: 0 | Y8: 0
A9: 4 | B9: twu&15 | C9: =control!A10 -> 0 | D9: =control!J23 -> 0 | E9: =control!F23 -> 0 | F9: =control!I23 -> 0 | K9: 0 | L9: =control!K9 -> 0 | N9: =control!M9 -> 0 | O9: =control!O9 -> 0 | Q9: =control!L23 -> 0 | R9: 0 | V9: =profile!E31 -> 0 | X9: 0 | Y9: 0
A10: 5 | B10: tqyk-&15 | C10: =control!A11 -> 0 | D10: =control!J24 -> 0 | E10: =control!F24 -> 0 | F10: =control!I24 -> 0 | K10: 0 | L10: =control!K10 -> 0 | N10: =control!M10 -> 0 | O10: =control!O10 -> 0 | Q10: =control!L24 -> 0 | R10: 0 | V10: =profile!F31 -> 0 | X10: 0 | Y10: 0
A11: 6 | B11: vx-&15 | C11: =control!A12 -> 0 | D11: =control!J25 -> 0 | E11: =control!F25 -> 0 | F11: =control!I25 -> 0 | K11: 0 | L11: =control!K11 -> 0 | N11: =control!M11 -> 0 | O11: =control!O11 -> 0 | Q11: =control!L25 -> 0 | R11: 0 | V11: =profile!G31 -> 0 | X11: 0 | Y11: 0
A12: 7 | B12: flr-&15 | C12: =control!A13 -> 0 | D12: =control!J26 -> 0 | E12: =control!F26 -> 0 | F12: =control!I26 -> 0 | K12: 0 | L12: =control!K12 -> 0 | N12: =control!M12 -> 0 | O12: =control!O12 -> 0 | Q12: =control!L26 -> 0 | R12: 0 | V12: =profile!H31 -> 0 | X12: 0 | Y12: 0
A13: 8 | B13: vDVw-&15 | C13: =control!A14 -> 0 | D13: =control!J27 -> 0 | E13: =control!F27 -> 0 | F13: =control!I27 -> 0 | K13: 0 | L13: =control!K13 -> 0 | N13: =control!M13 -> 0 | O13: =control!O13 -> 0 | Q13: =control!L27 -> 0 | R13: 0 | V13: =profile!I31 -> 0 | X13: 0 | Y13: 0
A14: 9 | B14: uc-&15 | C14: =control!A15 -> 0 | D14: =control!J28 -> 0 | E14: =control!F28 -> 0 | F14: =control!I28 -> 0 | K14: 0 | L14: =control!K14 -> 0 | N14: =control!M14 -> 0 | O14: =control!O14 -> 0 | Q14: =control!L28 -> 0 | R14: 0 | V14: =profile!J31 -> 0 | X14: 0 | Y14: 0
A15: 10 | B15: fnl-&15 | C15: =control!A16 -> 0 | D15: =control!J29 -> 0 | E15: =control!F29 -> 0 | F15: =control!I29 -> 0 | K15: 0 | L15: =control!K15 -> 0 | N15: =control!M15 -> 0 | O15: =control!O15 -> 0 | Q15: =control!L29 -> 0 | R15: 0 | V15: =profile!K31 -> 0 | X15: 0 | Y15: 0
A16: 11 | B16: tu-&16 | C16: =control!A17 -> 0 | D16: =control!J30 -> 0 | E16: =control!F30 -> 0 | F16: =control!I30 -> 0 | K16: 0 | L16: =control!K16 -> 0 | N16: =control!M16 -> 0 | O16: =control!O16 -> 0 | Q16: =control!L30 -> 0 | R16: 0 | V16: =profile!M31 -> 0 | X16: 0 | Y16: 0
A17: 12 | B17: Qj-&16 | C17: =control!A18 -> 0 | D17: =control!J31 -> 0 | E17: =control!F31 -> 0 | F17: =control!I31 -> 0 | K17: 0 | L17: =control!K17 -> 0 | N17: =control!M17 -> 0 | O17: =control!O17 -> 0 | Q17: =control!L31 -> 0 | R17: 0 | V17: =profile!O31 -> 0 | X17: 0 | Y17: 0
A18: 13 | B18: Mh , ,fj | D18: =control!K20 -> 0 | K18: 0 | L18: =control!K21 -> 0 | X18: 0 | Y18: 0
A19: 14 | B19: Mh , ,fj | D19: =control!K22 -> 0 | K19: 0 | L19: =control!K23 -> 0 | X19: 0 | Y19: 0
A20: 15 | B20: le- vo- | C20: =control!M4 -> 0 | D20: =control!N4 -> 0 | K20: 0 | X20: 0 | Y20: 0
A21: 16 | B21: cksul | G21: =control!C3 -> 3387 | K21: 3387 | X21: 0 | Y21: 3387
A22: 17 | B22: fQDls ,fj | H22: =profile!B17 -> 0 | K22: 0 | V22: =profile!Q31 -> 0 | X22: 0 | Y22: 0
A23: 18 | B23: fQDls ,fj | H23: =profile!F17 -> 0 | K23: 0 | V23: =profile!S31 -> 0 | X23: 0 | Y23: 0
A24: 19 | K24: 0 | X24: 0 | Y24: 0
A25: 20 | B25: ;ksx | C25: =C6+C7+C8+C9+C10+C11+C12+C13+C14+C15+C16+C17+C18+C19+C20+C21+C22+C23+C24 -> 0 | D25: 0 | E25: 0 | F25: 0 | G25: 3387 | H25: 0 | I25: 0 | J25: 0 | K25: 3387 | L25: 0 | M25: 0 | N25: 0 | O25: 0 | P25: 0 | Q25: 0 | R25: 0 | S25: 0 | T25: 0 | U25: 0 | V25: 0 | W25: 0 | X25: 0 | Y25: 3387
K27: gLrk{kj deZpkjh | V27: gLrk{kj vkgj.k o forj.k vf/kdkjh
A33: How to Use
A35: 1- izksQkby 'khV ij okafNr fooj.k ;fn vkius Hkj fy;k gS rks LVs.MMZ lSysjh 'khV tusjsV djus ds fy, Åij fn;s x;s cVu 'Generate Salary Sheet' dks nckb;sA
A37: 2- LVS.MMZ lSysjh 'khV izkIr djus ds i'pkr vki viuh oS;fDrd vko';drkvksa ds vuqlkj blesa Modifications dj ldrs gSaA tSls G P F o S I dh dVkSfr;ksa dks change dj ldrs gSaA fdUrq /;ku jgs] vkids }kjk ;fn bl 'khV ij dksbZ Hkh ifjorZu fd;k tkrk gS rks vc iqu% 'khV ij ekStwn cVu 'Generate Salary Sheet' dks ugha nck,a vU;Fkk vki }kjk fd, x, Modifications lekIr gks tk,axsaA ftu dkWye o jkW ds ysoy dk dyj xzhu gS vki muds ysoy vko';drk gksus ij change dj ldrs gSaA
A39: 3- iqu% u, O;fDr ds fy, LVS.MMZ lSysjh 'khV tusjsV djus ds fy, izksQkby ij fooj.k Hkjsa ,oa bl 'khV ij ekStwn cVu 'Generate Salary Sheet' dks nck,aA fizaV dek.M nsus ls igys fizaV fizO;w vo'; ns[ksa] ,oa mlh ist dks fizaV djsa ftldh vkidks vko';drk gSA
C110: 0

Sheet HRA ex. (hidden)
D7: HRA exempted from income tax calculator | I7: Partial HRA exemption calculator
D8: House Rent allowance received ( Annual ) | H8: =salary!E25 -> 0 | I8: ='Partial HRA'!E17 -> 0
D9: Rent paid ( Annual ) | H9: =profile!B15 -> 0 | I9: ='Partial HRA'!J9 -> 0
D10: Salary received ( Basic + DA ) | H10: =ROUND((salary!C6*1.13),0)+ROUND((salary!C7*1.13),0)+ROUND((salary!C8*1.13),0)+ROUND((salary!C9*1.13),0)+ROUND((salary!C10*1.19),0)+ROUND((salary!C11*1.19),0)+ROUND((salary!C12*1.19),0)+ROUND((salary!C13*1.19),0)+ROUND((salary!C14*1.19),0)+ROUND((salary!C15*1.19),0)+ROUND((salary!C16*1.19),0)+ROUND((salary!C17*1.19),0)+SUM(salary!C6:'salary'!C17) -> 0 | I10: ='Partial HRA'!D17 -> 0
D11: HRA exemption amount from IT | H11: =ROUND(IF((H9-10%*H10)<H8,H9-10%*H10,H8),0) -> 0 | I11: =ROUND(IF((I9-10%*I10)<I8,I9-10%*I10,I8),0) -> 0

Sheet I T cal. (hidden)
A1: vk;dj x.kuk i= ys[kk o"kZ 2015&2016 dj fu/kkZj.k o"kZ 2016&2017
A2: =PROPER(IF(profile!B4="","",profile!B4)) -> Keshav Das Gupta | B2: =PROPER(IF(profile!B5="","",profile!B5)) -> Senior Teacher | C2: =PROPER(IF(profile!K5="","",profile!K5)) -> Govt Sec School, Sawai Madhopur
A3: =CONCATENATE("PAN:- ",control!C19) -> PAN:- GGAAA9999B | B3: =CONCATENATE("Bank Ac. No.:- ",profile!B9) -> Bank Ac. No.:- | D3: =CONCATENATE("Name of Bank:-",profile!K9) -> Name of Bank:-SBBJ, JOHRI BAZAR JAIPUR
A4: 1- osru en esa vk; ¼HkÙkksa lfgr½ | B4: =IF(control!H4=TRUE,"(+ Govt. Contri. towards NPS)","") ->  | E4: =salary!K25+IF(control!H4=TRUE,salary!L25,"0") -> 3387 | G4: xzhu dyj lsYl dks vko';drk gks rks esU;wvyh HkjysaA fizaV ysus ls igys fizaV fizO;w ns[kdj mlh ist dks fizaV djsa] ftldh vkidks vko';drk gSA
A5: ;fn osru 150000 ls vf/kd gS rks /kkjk 17¼2½ ds varxZr izkIr lqfo/kk,a | D5: 0 | E5: =E4+D5 -> 3387
A6: ?kVkb;s& dVkSfr;ka US10 (13 A) | B6: =IF(control!J3>0,control!J3,IF('Partial HRA'!J10>0,'Partial HRA'!J10,"0")) -> 0 | C6: US10 | D6: 0 | E6: =E5-(B6+D6) -> 3387
A7: 2- ¼1½ v/;k; IV C ds varxr vk;% ¼1½ Lo;a ds mi;ksx esa 'kwU; | C7: ¼2½ izkIr fdjk;k | D7: =profile!D19 -> 0 | E7: =E6+D7 -> 3387
A8: ¼1½ x`gdj | B8: ¼2½ ejEer- | C8: ¼3½ _.k ij C;kt | D8: ¼4½ ;ksx 1 ls 3
A9: =profile!G19 -> 0 | B9: =profile!K19 -> 0 | C9: =IF(profile!F23<=200000,profile!F23,200000) -> 0 | D9: =A9+B9+C9 -> 0 | E9: =E7-D9 -> 3387
A10: 3- vU; óksrksa ls vk;%
A11: NSC ij C;kt | B11: FDR ls C;kt | C11: Bonds ls C;kt | D11: cpr [kkrs ij C;kt | E11: vU; vk;
A12: =profile!B20 -> 0 | B12: =profile!G20 -> 0 | C12: =profile!R19 -> 0 | D12: =profile!K20 -> 0 | E12: =profile!R20 -> 0
A13: ldy dqy vk; | E13: =E9+A12+B12+C12+D12+E12 -> 3387
A14: v/;k; VI A ds vUrxZr dVkSfr;ka
A15: GPF | C15: =IF(control!H4=TRUE,"0",salary!L25) -> 0 | D15: US 80CCD(1) | E15: =IF(control!H4=TRUE,control!C24,"0") -> 0
A16: S I | C16: =salary!N25 -> 0 | D16: Tution fee: 2 children | E16: =profile!Q24 -> 0
A17: LIC | C17: =profile!D22+salary!R25 -> 0 | D17: jk"Vªh; cpr i= | E17: =profile!B24 -> 0
A18: Gr. Acc. Ins. | C18: =IF(salary!W7="247.19",220,"0") -> 0 | D18: jk"Vªh; cpr i= ij vnÙk C;kt | E18: =profile!J23 -> 0
A19: ULIP | C19: =profile!Q25 -> 0 | D19: bfDoVh fyad lsfoax Ldhe | E19: =profile!B25 -> 0
A20: Hkou _.k iquHkqZxrku | C20: =profile!B23 -> 0 | D20: LFkfxr okf"kZdh | E20: =profile!F26 -> 0
A21: PPF | C21: =profile!J25 -> 0 | D21: LFkkbZ tek 5 o"kZ | E21: =profile!B26 -> 0
A22: PLI | C22: =profile!F24 -> 0 | D22: lqdU;k le`f) ;kstuk | E22: =profile!J24 -> 0
A23: NOTIFIED BOND OF NABARD | C23: =profile!F25 -> 0 | D23: US 80CCC | E23: =profile!Q23 -> 0
A24: =CONCATENATE("TOTAL",IF(control!H4=TRUE," (excluding govt. contri. to NPS)","")) -> TOTAL | E24: =SUM(E15:E23)+SUM(C15:C23) -> 0
A25: Qualifying Amount US80CCE (Max Rs 150000/) | C25: =IF(control!H4=TRUE,"+US 80CCD(2)","") ->  | D25: =CONCATENATE(IF(control!H4=TRUE,"Rs.",""),IF(control!H4=TRUE,salary!L25,"")) ->  | E25: =IF(E24<=150000,E24,150000)+IF(control!H4=TRUE,salary!L25,"0") -> 0
A26: vU; dVkSfr;ka
A27: US 80 CCG Max Rs 25000/ | E27: =IF(ROUND((profile!Q22/2),0)<=25000,ROUND((profile!Q22/2),0),25000) -> 0
A28: US 80D | E28: =profile!Q26 -> 0
A29: US 80DD | E29: =profile!B27 -> 0
A30: US 80DDB (Patient suffering from Cancer, AIDS, Chronical renal failure, Thalassaemia etc.) | E30: =profile!F27 -> 0
A31: US 80 E | E31: =profile!J27 -> 0
A32: US 80G | E32: =control!G3 -> 0
A33: US 80GG ¼Hkqxrku fd, x, Hkou fdjk;s ds ckjs es dVkSrh] vf/kdre `2000 rd½ | E33: =IF(profile!Q27<=24000,profile!Q27,24000) -> 0
A34: US 80GGA ¼vuqeksfnr oSKkfud] lkekftd] xzkeh.k fodkl gsrq fn;k x;k nku 100%½ | E34: =profile!F28 -> 0
A35: US 80U | E35: =profile!J28 -> 0
A36: US 80 TTA | E36: =IF(profile!J26<=10000,profile!J26,10000) -> 0
A37: US 80 CCD (1B) | E37: =IF(profile!K22<=50000,profile!K22,50000) -> 0
A38: v/;k; VI A ds vUrxZr dqy dVkSfr;ka | E38: =E25+E27+E28+E29+E30+E31+E32+E33+E34+E35+E36+E37 -> 0
A39: 'kq) dj ;ksX; vk; ¼iw.kkZad esa½ | E39: =ROUND((E13-E38),-1) -> 3390
A40: TAX FOR MEN | E40: =ROUND(IF(E39<=250000,0,IF(E39<=500000,(E39-250000)*0.1,IF(E39<=1000000,25000+(E39-500000)*0.2,IF(E39>1000000,125000+(E39-1000000)*0.3,"0")))),0) -> 0
A41: Tax Credit, Max Rs 2000/ | E41: =IF(AND(E39<=500000,E40>=2000),E40-2000,IF(AND(E39<=500000,E40<2000),0,E40)) -> 0
A42: =CONCATENATE("dqy vk;dj ns;rk") -> dqy vk;dj ns;rk | C42: =IF(E39<=500000,"( With US 87A Tax Credit Max Rs 2000/)",0) -> ( With US 87A Tax Credit Max Rs 2000/) | E42: =IF(E39<=500000,E41,E40) -> 0
A43: f'k{kk midj 2% | B43: =ROUND((E42*0.02),0) -> 0 | C43: mPp f'k{kk midj 1% | D43: =ROUND((E42*0.01),0) -> 0 | E43: =B43+D43 -> 0
A44: dqy vk;dj | E44: =E42+E43 -> 0
A45: REBATE US 89 (1) | E45: =profile!Q28 -> 0
A46: dqy dj ns;rk | E46: =E44-E45 -> 0
A47: óksr ij gqbZ dVkSrh
A48: ekpZ 2015 | B48: =salary!V6+IF(profile!B14=3,salary!V20,0) -> 0 | C48: flrEcj 2015 | D48: =salary!V12+IF(profile!B14=9,salary!V20,0) -> 0 | E48: fQDls'ku ,fj;j ls Vh Mh ,l
A49: vizsy 2015 | B49: =salary!V7+IF(profile!B14=4,salary!V20,0) -> 0 | C49: vDVwcj 2015 | D49: =salary!V13+IF(profile!B14=10,salary!V20,0) -> 0 | E49: =salary!V22+salary!V23+salary!V24 -> 0
A50: ebZ 2015 | B50: =salary!V8+IF(profile!B14=5,salary!V20,0) -> 0 | C50: uoEcj 2015 | D50: =salary!V14+IF(profile!B14=11,salary!V20,0) -> 0
A51: twu 2015 | B51: =salary!V9+IF(profile!B14=6,salary!V20,0) -> 0 | C51: fnlEcj 2015 | D51: =salary!V15+IF(profile!B14=12,salary!V20,0) -> 0
A52: tqykbZ 2015 | B52: =salary!V10+IF(profile!B14=7,salary!V20,0) -> 0 | C52: tuojh 2016 | D52: =salary!V16+IF(profile!B14=1,salary!V20,0) -> 0
A53: vxLr 2015 | B53: =salary!V11+IF(profile!B14=8,salary!V20,0) -> 0 | C53: Qjojh 2016 | D53: =salary!V17+IF(profile!B14=2,salary!V20,0) -> 0
A54: óksr ij gqbZ dqy dVkSrh | E54: =SUM(B48:B53)+SUM(D48:D53)+E49 -> 0
A55: 'ks"k dj ns;rk | E55: =IF(E46>E54,E46-E54,"0") -> 0
A56: dj fjQ.M | E56: =IF(E54>E46,E46-E54,"0") -> 0
D59: gLrk{kj deZpkjh

Sheet Form 16 (hidden)
A1: FORM NO. 16
A2: [(See Rule 31(1)(a)]
A3: PART-A
A4: Certificate uner section 203 of the income-tax act, 1961 for tax deducted at source on Salary.
A5: Certificate No. | F5: Last Updated On
A6: Name and address of the employer | F6: Name and adress of the employee
A7: =PROPER(IF(profile!K8>0,CONCATENATE(profile!B8,CHAR(10),profile!K8),CONCATENATE(profile!B8,CHAR(10),profile!K5))) -> Head Master Govt Sec School, Sawai Madhopur | F7: =PROPER(IF(profile!B4="","",profile!B4)) -> Keshav Das Gupta | M7: xzhu dyj lsYl dks vko';drk gks rks esU;wvyh HkjysaA fizaV djus ls igys fizaV fizO;w ns[kdj mlh ist dks fizaV djsa] ftldh vkidks vko';drk gSA ¼QkeZ ua- 16 Download djus ds fy, http://tdscpc.gov.in (Traces) osclkbV ij tk,aA
F8: =PROPER(IF(profile!B5="","",profile!B5)) -> Senior Teacher
A9: PAN of the Deductor | D9: TAN of Deductor | F9: PAN of the Employee | I9: Employee Ref No.
A10: =control!C20 ->  | D10: =control!C21 ->  | F10: =control!C19 -> GGAAA9999B
A11: CIT (TDS) | F11: Assess. Year | H11: Peroid with the Employer
A12: Adress | B12: CIT (TDS), New Central Revenue Building, Statue Circle | F12: 2016-17 | H12: From | J12: To
A13: City | B13: Jaipur | D13: PIN Code | E13: 302005 | H13: 01-4-2015 | J13: 31-03-2016
A14: Summary of amount paid/credited and tax deducted at source thereon in respect of the employee | M14: ;fn vkidk VhMh,l BIN ds }kjk tek gqvk gS rks lEcfU/kr Annexure ds fy, fuEu cVuksa dk mi;ksx djsaA | Q14: ;fn vkidk VhMh,l Challan ds }kjk tek gqvk gS rks lEcfU/kr Annexure ds fy, fuEu cVuksa dk mi;ksx djsaA
A15: Quarters | B15: Receipt Numbers of original quarterly statements of TDS under sub-secion (3) of section 200 | E15: Amount paid/ credited | F15: Amount of tax deducted (Rs.) | I15: Amount of tax deposited/ remitted (Rs.)
A16: Ist | B16: =IF(profile!C35="","",profile!C35) ->  | F16: =IF(profile!C36="","NIL",profile!C36) -> NIL | I16: =F16 -> NIL
A17: IInd | B17: =IF(profile!F35="","",profile!F35) ->  | F17: =IF(profile!F36="","NIL",profile!F36) -> NIL | I17: =F17 -> NIL
A18: IIIrd | B18: =IF(profile!I35="","",profile!I35) ->  | F18: =IF(profile!I36="","NIL",profile!I36) -> NIL | I18: =F18 -> NIL
A19: IVth | B19: =IF(profile!O35="","",profile!O35) ->  | F19: =IF(profile!O36="","NIL",profile!O36) -> NIL | I19: =F19 -> NIL
A20: TOTAL | E20: =SUM(E16:E19) -> 0 | F20: =SUM(F16:F19) -> 0 | I20: =SUM(I16:I19) -> 0
A21: I. Details of tax deducted and deposited in the Central Government account through book adjustment
A22: (The Deductor to provide payment-wise details of tax deducted and deposited with respect to the deductee)
A23: S.N. | B23: Tax Deposited in respect of the deductee (Rs) | D23: Book identification number (BIN)
D24: Receipt numbers of form No. 24G | E24: DDO serial number in Form No. 24G | F24: Date of transfer voucher (dd/mm/yyyy) | I24: Status of matching with Form No. 24G
A25: 1 | B25: =salary!V6 -> 0 | D25: =IF(profile!B32="","",profile!B32) ->  | E25: =IF(profile!B33="","",profile!B33) ->  | F25: =IF(profile!B34="","",profile!B34) ->  | I25: =IF(D25>"0","Yes","") -> 
A26: 2 | B26: =salary!V7 -> 0 | D26: =IF(profile!C32="","",profile!C32) ->  | E26: =IF(profile!C33="","",profile!C33) ->  | F26: =IF(profile!C34="","",profile!C34) ->  | I26: =IF(D26>"0","Yes","") -> 
A27: 3 | B27: =salary!V8 -> 0 | D27: =IF(profile!D32="","",profile!D32) ->  | E27: =IF(profile!D33="","",profile!D33) ->  | F27: =IF(profile!D34="","",profile!D34) -> 
A28: 4 | B28: =salary!V9 -> 0 | D28: =IF(profile!E32="","",profile!E32) ->  | E28: =IF(profile!E33="","",profile!E33) ->  | F28: =IF(profile!E34="","",profile!E34) -> 
A29: 5 | B29: =salary!V10 -> 0 | D29: =IF(profile!F32="","",profile!F32) ->  | E29: =IF(profile!F33="","",profile!F33) ->  | F29: =IF(profile!F34="","",profile!F34) -> 
A30: 6 | B30: =salary!V11 -> 0 | D30: =IF(profile!G32="","",profile!G32) ->  | E30: =IF(profile!G33="","",profile!G33) ->  | F30: =IF(profile!G34="","",profile!G34) -> 
A31: 7 | B31: =salary!V12 -> 0 | D31: =IF(profile!H32="","",profile!H32) ->  | E31: =IF(profile!H33="","",profile!H33) ->  | F31: =IF(profile!H34="","",profile!H34) -> 
A32: 8 | B32: =salary!V13 -> 0 | D32: =IF(profile!I32="","",profile!I32) ->  | E32: =IF(profile!I33="","",profile!I33) ->  | F32: =IF(profile!I34="","",profile!I34) -> 
A33: 9 | B33: =salary!V14 -> 0 | D33: =IF(profile!J32="","",profile!J32) ->  | E33: =IF(profile!J33="","",profile!J33) ->  | F33: =IF(profile!J34="","",profile!J34) -> 
A34: 10 | B34: =salary!V15 -> 0 | D34: =IF(profile!K32="","",profile!K32) ->  | E34: =IF(profile!K33="","",profile!K33) ->  | F34: =IF(profile!K34="","",profile!K34) -> 
A35: 11 | B35: =salary!V16 -> 0 | D35: =IF(profile!M32="","",profile!M32) ->  | E35: =IF(profile!M33="","",profile!M33) ->  | F35: =IF(profile!M34="","",profile!M34) -> 
A36: 12 | B36: =salary!V17 -> 0 | D36: =IF(profile!O32="","",profile!O32) ->  | E36: =IF(profile!O33="","",profile!O33) ->  | F36: =IF(profile!O34="","",profile!O34) -> 
A37: 13 | B37: =salary!V22 -> 0 | D37: =IF(profile!Q32="","",profile!Q32) ->  | E37: =IF(profile!Q33="","",profile!Q33) ->  | F37: =IF(profile!Q34="","",profile!Q34) -> 
A38: 14 | B38: =salary!V23 -> 0 | D38: =IF(profile!S32="","",profile!S32) ->  | E38: =IF(profile!S33="","",profile!S33) ->  | F38: =IF(profile!S34="","",profile!S34) -> 
A39: 15 | B39: =salary!V24 -> 0 | I39: =IF(D39>"0","Yes","") -> 
A40: Total | B40: =SUM(B25:B39) -> 0
A41: II. Details of Tax deducted and deposited in Central Government Account through Challan.
A42: (The deducter to provide payment-wise details of tax deducted and deposited with respect to the deductee)
A43: S.N. | B43: Tax Deposited in respect on of the deductee (Rs) | D43: Challan identification number (CIN)
D44: BSR code of the Bank Branch | F44: Date on which tax deposited (dd/mm/yyyy) | H44: Challan Serial Number | J44: Status of matching with OLTAS
A45: 1
A46: 2
A47: 3
A48: 4
A49: 5
A50: 6
A51: 7
A52: 8
A53: 9
A54: 10
A55: 11
A56: 12
A57: 13
A58: 14
A59: 15
A60: Total | B60: =SUM(B45:B59) -> 0
A61: Verification
A62: I | B62: =IF(profile!B6="","",profile!B6) ->  | E62: son/daughter of | F62: =IF(profile!B7="","",profile!B7) ->  | J62: working in the
A63: capacity of | C63: =IF(profile!B8="","",profile!B8) -> HEAD MASTER | F63: (designation) do hereby certify that a sum of
A64: Rs | B64: =I20 -> 0 | C64: =spellIndian($B$64) -> No Rupees Only | H64: (in words) has been deducted
A65: and deposited to the credit of the Central Govt.. I further certify that the information given above is true, complete and
A66: correct and is based on the books of account, documents,TDS statement, TDS deposited and other available records.
A67: Place
A68: Date | E68: Signature of person responsible for deduction of tax
A69: Designation | C69: =IF(profile!B8="","",profile!B8) -> HEAD MASTER | E69: Full name | F69: =IF(profile!B6="","",profile!B6) -> 
A70: PART- B (Annexure)
A71: DETAILS OF SALARY PAID AND ANY OTHER INCOME AND TAX DEDUCTED
A72: 1. Gross salary
A73: (a) Salary as per provisions contained in section 17(1) | F73: ='I T cal.'!E4 -> 3387
A74: (b) Value of perquisites u/s 17(2) (as per Form No. 12BA, wherever applicable) | F74: ='I T cal.'!D5 -> 0
A75: (c) Profits in lieu of salary under section 17(3) (as per Form No. 12BA, wherever applicable) | F75: 0
A76: (d) Total | H76: =F73+F74+F75 -> 3387
A77: 2. Less: Allowance to the extent exempt u/s 10 House Rent Allowance
A78: Allowance | D78: Rs
A79: House Rent Allow. US10 (13 A) | D79: =IF(E79="0","",salary!E25) ->  | E79: ='I T cal.'!B6 -> 0
A80: ='I T cal.'!C6 -> US10 | D80: ='I T cal.'!D6 -> 0 | E80: ='I T cal.'!D6 -> 0 | F80: =E79+E80 -> 0
A81: 3. Balance (1 - 2) | H81: =H76-F80 -> 3387
A82: 4. Deductions:
A83: (a) | C83: Entertainment allowance | F83: 0
A84: (b) | C84: Tax on employment | F84: 0
A85: 5. Aggregate of 4(a) and (b) | H85: =F83+F84 -> 0
A86: 6. Income chargeable under the head "salaries" (3-5) | J86: =H81-H85 -> 3387
A87: 7. Add: Any other income reported by employee
A88: Income | E88: Rs
A89: From House Property | E89: ='I T cal.'!D7-'I T cal.'!D9 -> 0
A90: =CONCATENATE(IF('I T cal.'!A12>0,"NSC int,",""),IF('I T cal.'!B12>0," FDR int,",""),IF('I T cal.'!C12>0," Bonds,",""),IF('I T cal.'!D12>0," SB a/c int,",""),IF('I T cal.'!E12>0," Other income","")) ->  | E90: =SUM('I T cal.'!A12:'I T cal.'!E12) -> 0 | H90: =E89+E90 -> 0
A91: 8. Gross total income (6+7) | J91: =J86+H90 -> 3387
A92: 9. Deductions under Chapter VI A
A93: (A) Section 80C, 80CCC and 80CCD
A94: (a) Section 80C | H94: Gross Amount | J94: Deductible Amount
A95: G P F | F95: ='I T cal.'!C15 -> 0
A96: S I | F96: ='I T cal.'!C16 -> 0
A97: L I C + ULIP + PLI | F97: ='I T cal.'!C17+'I T cal.'!C19+'I T cal.'!C22 -> 0
A98: Gr. Acc. Insurance | F98: ='I T cal.'!C18 -> 0
A99: Home loan capital | F99: ='I T cal.'!C20 -> 0
A100: PPF | F100: ='I T cal.'!C21 -> 0
A101: Notified Bond Of NABARD | F101: ='I T cal.'!C23 -> 0
A102: Tution Fee | F102: ='I T cal.'!E16 -> 0
A103: NSC + Interest on NSC | F103: ='I T cal.'!E17+'I T cal.'!E18 -> 0
A104: Equity linked savings | F104: ='I T cal.'!E19 -> 0 | J104: =IF(control!H4=TRUE,"US 80CCE (Max limit) +US 80CCD(2)","") -> 
A105: Deferred Annuity | F105: ='I T cal.'!E20 -> 0
A106: Fixed Deposit | F106: ='I T cal.'!E21 -> 0
A107: Sukanya Samriddhi Yojana | F107: ='I T cal.'!E22 -> 0
A108: (b) Section 80CCC | F108: ='I T cal.'!E23 -> 0 | J108: =CONCATENATE(IF(control!H4=TRUE,"(Rs.",""),IF(control!H4=TRUE,salary!L25,""),IF(control!H4=TRUE,")","")) -> 
A109: (c) Section 80CCD(1) | F109: ='I T cal.'!E15 -> 0 | H109: =SUM(F95:F109) -> 0 | J109: =IF(H109<=150000,H109,150000)+IF(control!H4=TRUE,salary!L25,"0") -> 0
A110: (B) Other Sections under Chapter VIA | F110: Gross Amount | H110: Qualifying amount | J110: Deductible Amount
A111: U/S 80CCG | F111: =profile!Q22 -> 0 | H111: ='I T cal.'!E27 -> 0
A112: U/S 80D | F112: ='I T cal.'!E28 -> 0 | H112: ='I T cal.'!E28 -> 0
A113: U/S 80DD | F113: ='I T cal.'!E29 -> 0 | H113: ='I T cal.'!E29 -> 0
A114: U/S 80DDB | F114: ='I T cal.'!E30 -> 0 | H114: ='I T cal.'!E30 -> 0
A115: U/S 80E | F115: ='I T cal.'!E31 -> 0 | H115: ='I T cal.'!E31 -> 0
A116: U/S 80G | F116: =profile!B28 -> 0 | H116: ='I T cal.'!E32 -> 0
A117: U/S 80GG | F117: =profile!Q27 -> 0 | H117: ='I T cal.'!E33 -> 0
A118: U/S 80GGA | F118: ='I T cal.'!E34 -> 0 | H118: ='I T cal.'!E34 -> 0
A119: U/S 80U | F119: ='I T cal.'!E35 -> 0 | H119: ='I T cal.'!E35 -> 0
A120: US 80CCD (1B) | F120: =profile!K22 -> 0 | H120: ='I T cal.'!E37 -> 0
A121: US 80TTA | F121: =profile!J26 -> 0 | H121: ='I T cal.'!E36 -> 0 | J121: =ROUND((H111+H112+H113+H114+H115+H116+H117+H118+H119+H120+H121),0) -> 0
A122: 10. Aggregate of deductible amount under chapter VIA | J122: =ROUND((J109+J121),0) -> 0
A123: 11. Total income (8-10) | J123: =ROUND((J91-J122),-1) -> 3390
A124: Income tax for Men | J124: =ROUND(IF(J123<=250000,0,IF(J123<=500000,(J123-250000)*0.1,IF(J123<=1000000,25000+(J123-500000)*0.2,IF(J123>1000000,125000+(J123-1000000)*0.3,"0")))),0) -> 0
A125: Tax Credit, Max Rs 2000/ | J125: =IF(AND(J123<=500000,J124>=2000),J124-2000,IF(AND(J123<=500000,J124<2000),0,J124)) -> 0
A126: 12. Tax on total income | J126: =IF(J123<=500000,J125,J124) -> 0
A127: 13. Education cess | J127: =ROUND((J126*0.02),0)+ROUND((J126*0.01),0) -> 0
A128: 14. Tax payable (12+13) | J128: =J126+J127 -> 0
A129: 15. Relief under section 89 (Attach details) | J129: ='I T cal.'!E45 -> 0
A130: 16. Tax payable (14-15) | J130: =J128-J129 -> 0
A131: Verification
A132: I | B132: =IF(profile!B6="","",profile!B6) ->  | E132: son/daughter of | F132: =IF(profile!B7="","",profile!B7) ->  | J132: working in the
A133: capacity of | C133: =IF(profile!B8="","",profile!B8) -> HEAD MASTER | F133: (designation) do hereby certify that the
A134: information given above is true, complete and correct and is based on the books of account, documents,TDS statement and other
A135: available records.
A136: Place
A137: Date | E137: Signature of person responsible for deduction of tax
A138: Designation | C138: =IF(profile!B8="","",profile!B8) -> HEAD MASTER | E138: Full name | F138: =IF(profile!B6="","",profile!B6) -> 
A143: Notes:-
A144: 1. Government deductors to fill information in item 1 if tax is paid without production of an income tax challan and in item II if tax is paid accompanied by an income tax callan.
A147: 2. The deductor shall furnish the address of the Commissioner of Income tax (TDS) having jurisdiction as regards TDS statements of the assessee.
A150: 3. If an assessee is employed under one employer only during the year, certificate is Form No. 16 issued for the quarter ending on 31st March of the financial year shall contain the details of tax deducted and deposited for all the quarters of the financial year.
A154: 4. If an assessee is employed under more than one employer during the year, each of the employer shall issue Part A of the certificate in Form No. 16 pertaining to the period for which such assessee was employed with each of the employers. Part B (Annexure) of the certificate in Form No. 16 may be issued by each of the employers or the last employer at the option of the assesee.
A159: 5. In items I and II in column for tax deposited in respect of deductee. Furnish total amount of TDS and education cess.

Sheet nsc int (hidden)
A1: NSC INTEREST CALCULATION
C6: NSC INTEREST CALCULATION (GIVE AMOUNT, PERIOD-WISE)
C7: PURCHASE PERIOD | D7: FROM 01-03-2003 TO 30-11-2011 6 Year NSC | F7: FROM 01-12-2011 TO 31-03-2012 5 Year NSC | H7: FROM 01-04-2012 ONWARDS 5 Year NSC
C8: Period (in years) | D8: Amount | E8: Interest | F8: Amount | G8: Interest | H8: Amount | I8: Interest
C9: 1 | E9: =ROUND((D9*0.0816),0) -> 0 | G9: =ROUND((F9*0.0858),0) -> 0 | I9: =ROUND((H9*0.0878),0) -> 0
C10: 2 | E10: =ROUND((D10*0.0883),0) -> 0 | G10: =ROUND((F10*0.0931),0) -> 0 | I10: =ROUND((H10*0.0956),0) -> 0
C11: 3 | E11: =ROUND((D11*0.0955),0) -> 0 | G11: =ROUND((F11*0.1011),0) -> 0 | I11: =ROUND((H11*0.104),0) -> 0
C12: 4 | E12: =ROUND((D12*0.1033),0) -> 0 | G12: =ROUND((F12*0.1098),0) -> 0 | I12: =ROUND((H12*0.1131),0) -> 0
C13: 5 | E13: =ROUND((D13*0.1117),0) -> 0 | G13: =ROUND((F13*0.1192),0) -> 0 | I13: =ROUND((H13*0.123),0) -> 0
C14: 6 | E14: =ROUND((D14*0.1208),0) -> 0
C19: NSC INTEREST CALCULATION (GIVE AMOUNT, PERIOD-WISE)
C20: PURCHASE PERIOD | D20: FROM 01-12-2011 TO 31-03-2012 10 Year NSC | F20: FROM 01-04-2012 ONWARDS 10 Year NSC
C21: Period (in years) | D21: Amount | E21: Interest | F21: Amount | G21: Interest
C22: 1 | E22: =ROUND((D22*0.0889),0) -> 0 | G22: =ROUND((F22*0.091),0) -> 0
C23: 2 | E23: =ROUND((D23*0.0968),0) -> 0 | G23: =ROUND((F23*0.0993),0) -> 0
C24: 3 | E24: =ROUND((D24*0.1054),0) -> 0 | G24: =ROUND((F24*0.1083),0) -> 0
C25: 4 | E25: =ROUND((D25*0.1148),0) -> 0 | G25: =ROUND((F25*0.1181),0) -> 0
C26: 5 | E26: =ROUND((D26*0.125),0) -> 0 | G26: =ROUND((F26*0.1289),0) -> 0
C27: 6 | E27: =ROUND((D27*0.1361),0) -> 0 | G27: =ROUND((F27*0.1406),0) -> 0
C28: 7 | E28: =ROUND((D28*0.1482),0) -> 0 | G28: =ROUND((F28*0.1534),0) -> 0
C29: 8 | E29: =ROUND((D29*0.1613),0) -> 0 | G29: =ROUND((F29*0.1674),0) -> 0
C30: 9 | E30: =ROUND((D30*0.1757),0) -> 0 | G30: =ROUND((F30*0.1826),0) -> 0
C31: 10 | E31: =ROUND((D31*0.1913),0) -> 0 | G31: =ROUND((F31*0.1992),0) -> 0

Sheet us89(1)form (hidden)
A1: CALCULATION OF RELIEF UNDER SECTION 89 (1) | O1: Male | Q1: 1- loZizFke vius ,fj;j dks xr foÙkh; o"kksZa ds vuqlkj foHkkftr djsaA
A2: NAME | O2: Female
A3: ADDRESS | O3: 1
A4: PAN | H4: CATEGORY | Q4: 2- vc lEcfU/kr foÙkh; o"kksZa ds QkWeZ 16 vFkok ITR ls dj ;ksX; vk; dks lEcfU/kr lsYl esa Hkjuk gSA
A5: FINANCIAL YEAR- 2011-12 | L5: INCOME ( Rs )
A6: Enter net taxable income for 2011-12 (as per ITR/Form-16) | L6: 300000
A7: Enter arrears relates to 2011-12 | L7: 50000
A8: FINANCIAL YEAR- 2012-13 | L8: INCOME ( Rs ) | Q8: 3- dj ;ksX; vk; og vk; gS ftl ij ml foÙkh; o"kZ esa fu/kkZfjr vk;dj nj ls vk;dj dh x.kuk dh tkrh gSA
A9: Enter net taxable income for 2012-13 (as per ITR/Form-16) | L9: 400000
A10: Enter arrears relates to 2012-13 | L10: 25000
A11: FINANCIAL YEAR- 2013-14 | L11: INCOME ( Rs )
A12: Enter net taxable income for 2013-14 (as per ITR/Form-16) | L12: 850000 | Q12: 4- vc bl QkWeZ esa lEcfU/kr foÙkh; o"kZ dh dj ;ksX; vk; ,oa ml o"kZ ls lEcfU/kr ,fj;j dh jkf'k HkjsaA /;ku jgs foÙkh; o"kZ 2015&16 ds fy, Hkjh x;h dj ;ksX; vk; esa lEiw.kZ ,fj;j dh jkf'k tqMh gksA vc vxyh 'khV 'form10E' esa 'GENERATE FORM 10E' cVu nckdj QkWeZ 10E, Generate djsaA izkIr NwV dh jkf'k dks 'profile' 'khV ij lsy Q28 esa Rebate US89(1) esa HkjsaA
A13: Enter arrears relates to 2013-14 | L13: 300
A14: FINANCIAL YEAR- 2014-15 | L14: INCOME ( Rs )
A15: Enter net taxable income for 2014-15 (as per ITR/Form-16) | L15: 450000
A16: Enter arrears relates to 2014-15 | L16: 2500
A17: FINANCIAL YEAR- 2015-16 | L17: INCOME ( Rs )
A18: Enter net taxable income for 2015-16 including entire arrears received (as per ITR/Form-16) | L18: 400000

Sheet form10E (hidden)
A1: FORM NO. 10 E (See rule 21AA)
A2: Form for furnishing particulars of income undr scetion 192(2A) for year ending 31st March 2016 for claiming relief under section 89(1) by a Government servant or an employee in a company, co-operative society, local authority, university, institution, association or body.
A3: Name | D3: =PROPER(IF('us89(1)form'!D2="","",'us89(1)form'!D2)) ->  | P3: QkWeZ ds uhps ds Hkkx esa ekStwn cVu dks nckdj 'khV Generate djsaA
A4: Address | D4: =PROPER(IF('us89(1)form'!D3="","",'us89(1)form'!D3)) -> 
A5: PAN | D5: =UPPER(IF('us89(1)form'!D4="","",'us89(1)form'!D4)) ->  | I5: Status | K5: Indian Resident
A7: Particulars of Income referred to in rule 21A of the Income tax Rules, 1962, during the previous year relevant to assessment year 2016-17
A8: 1. (a) Salary received in arrears or in advance during 2015-16 in accordance with the provision of sub-rule (2) of rule 21A | L8: ='us89(1)form'!L7+'us89(1)form'!L10+'us89(1)form'!L13+'us89(1)form'!L16 -> 77800
A9: (b) Payment in the nature of gratuity in respect of past services, extending over a period of not less than 5 years in accordance with the provisions of sub-rule (3) of rule 21A | L9: Not applicable
A10: (c) Payment in the nature of compensation from the employer or former employer at or in connection with termination of employment after continuous service of not less than 3 years in accordance with the provisions of sub-rule (4) of rule 21A | L10: Not applicable
A11: (d) Payment in commutation of pension in accordance with the provisions of sub-rule (5) of rule 21A | L11: Not applicable
A12: 2. Detailed particulars of payments referred to above may be given in Annexure I, II, IIA, III or IV as the case may be | L12: Annexure- I
A13: Verification
A14: I do hereby declare that what is stated above is true to the best of my knowledge and belief. Verified today
A16: Date:
K17: Signature of the employee
A19: ANNEXURE - I
A20: 1. Total net taxable Income excluding Salary received in Arrears or advance | L20: =L22-L21 -> 322200
A21: 2. salary received in arrears or advance | L21: =L8 -> 77800
A22: 3. Total Income (as increased by salary received in arrears or advance) (Add item 1 and item 2) | L22: ='us89(1)form'!L18 -> 400000
A23: 4. Tax on total income (as per item 3) | L23: =control10E!G14 -> 13390
A24: 5. Tax on total income (as per item 1) | L24: =control10E!G6 -> 5377
A25: 6. Tax on salary received in arrears or advance (Difference of item 4 and item 5) | L25: =L23-L24 -> 8013
A26: 7. Tax computed in accordance with Table "A" (Brought from column 7 of Table "A") | L26: =M36 -> 8045
A27: 8. Relief under section 89 (1) (Indicate the difference between the amounts mentioned against items 6 and 7) | L27: =L25-L26 -> -32
A29: TABLE "A" (See item 7 of Annexure I)
A30: Previous Year(s) | C30: Total Net Taxable income of the relevant previous year | E30: salary received in arrears or advance relating to the relevant previous year as mentioned in col. (1) | G30: Total income (as increased by salry received in arrears or advance) or the relevant previous year mentioned in col. (1) (Add col. 2 and 3) | I30: Tax on total income (as per col. 2) | K30: Tax on total income (as per col. 4) | M30: Difference in tax (Amount under col. 6 minus amount under col. 5)
A31: 1 | C31: 2 | E31: 3 | G31: 4 | I31: 5 | K31: 6 | M31: 7
A32: 2011-12 | C32: ='us89(1)form'!L6 -> 300000 | E32: ='us89(1)form'!L7 -> 50000 | G32: =C32+E32 -> 350000 | I32: =control10E!G2 -> 12360 | K32: =control10E!G10 -> 17510 | M32: =K32-I32 -> 5150
A33: 2012-13 | C33: ='us89(1)form'!L9 -> 400000 | E33: ='us89(1)form'!L10 -> 25000 | G33: =C33+E33 -> 425000 | I33: =control10E!G3 -> 20600 | K33: =control10E!G11 -> 23175 | M33: =K33-I33 -> 2575
A34: 2013-14 | C34: ='us89(1)form'!L12 -> 850000 | E34: ='us89(1)form'!L13 -> 300 | G34: =C34+E34 -> 850300 | I34: =control10E!G4 -> 103000 | K34: =control10E!G12 -> 103062 | M34: =K34-I34 -> 62
A35: 2014-15 | C35: ='us89(1)form'!L15 -> 450000 | E35: ='us89(1)form'!L16 -> 2500 | G35: =C35+E35 -> 452500 | I35: =control10E!G5 -> 18540 | K35: =control10E!G13 -> 18798 | M35: =K35-I35 -> 258
A36: Total | M36: =M32+M33+M34+M35 -> 8045

Sheet control10E (hidden)
A1: year | B1: amount | C1: tax for male | D1: tax for female | E1: surcharge | F1: edu. cess | G1: total
A2: 2011-12 | B2: =form10E!C32 -> 300000 | C2: =ROUND(IF(B2<=180000,0,IF(B2<=500000,(B2-180000)*0.1,IF(B2<=800000,32000+(B2-500000)*0.2,IF(B2>800000,92000+(B2-800000)*0.3,"0")))),0) -> 12000 | D2: =ROUND(IF(B2<=190000,0,IF(B2<=500000,(B2-190000)*0.1,IF(B2<=800000,31000+(B2-500000)*0.2,IF(B2>800000,91000+(B2-800000)*0.3,"0")))),0) -> 11000 | F2: =ROUND(IF('us89(1)form'!$O$3=2,D2*0.02+D2*0.01,C2*0.02+C2*0.01),0) -> 360 | G2: =IF('us89(1)form'!$O$3=2,D2+F2,C2+F2) -> 12360
A3: 2012-13 | B3: =form10E!C33 -> 400000 | C3: =ROUND(IF(B3<=200000,0,IF(B3<=500000,(B3-200000)*0.1,IF(B3<=1000000,30000+(B3-500000)*0.2,IF(B3>1000000,130000+(B3-1000000)*0.3,"0")))),0) -> 20000 | D3: =ROUND(IF(B3<=200000,0,IF(B3<=500000,(B3-200000)*0.1,IF(B3<=1000000,30000+(B3-500000)*0.2,IF(B3>1000000,130000+(B3-1000000)*0.3,"0")))),0) -> 20000 | F3: =ROUND(IF('us89(1)form'!$O$3=2,D3*0.02+D3*0.01,C3*0.02+C3*0.01),0) -> 600 | G3: =IF('us89(1)form'!$O$3=2,D3+F3,C3+F3) -> 20600
A4: 2013-14 | B4: =form10E!C34 -> 850000 | C4: =ROUND(IF(B4<=220000,0,IF(B4<=500000,(B4-200000)*0.1-2000,IF(B4<=1000000,30000+(B4-500000)*0.2,IF(B4>1000000,130000+(B4-1000000)*0.3,"0")))),0) -> 100000 | D4: =ROUND(IF(B4<=220000,0,IF(B4<=500000,(B4-200000)*0.1-2000,IF(B4<=1000000,30000+(B4-500000)*0.2,IF(B4>1000000,130000+(B4-1000000)*0.3,"0")))),0) -> 100000 | E4: =IF(B4>10000000,C4*0.1,0) -> 0 | F4: =ROUND(IF('us89(1)form'!$O$3=2,D4*0.02+D4*0.01,C4*0.02+C4*0.01),0) -> 3000 | G4: =IF('us89(1)form'!$O$3=2,D4+E4+F4,C4+E4+F4) -> 103000
A5: 2014-15 | B5: =form10E!C35 -> 450000 | C5: =ROUND(IF(B5<=270000,0,IF(B5<=500000,(B5-250000)*0.1-2000,IF(B5<=1000000,25000+(B5-500000)*0.2,IF(B5>1000000,125000+(B5-1000000)*0.3,"0")))),0) -> 18000 | D5: =ROUND(IF(B5<=270000,0,IF(B5<=500000,(B5-250000)*0.1-2000,IF(B5<=1000000,25000+(B5-500000)*0.2,IF(B5>1000000,125000+(B5-1000000)*0.3,"0")))),0) -> 18000 | E5: =IF(B5>10000000,C5*0.1,0) -> 0 | F5: =ROUND(IF('us89(1)form'!$O$3=2,D5*0.02+D5*0.01,C5*0.02+C5*0.01),0) -> 540 | G5: =IF('us89(1)form'!$O$3=2,D5+E5+F5,C5+E5+F5) -> 18540
A6: 2015-16 | B6: =form10E!L20 -> 322200 | C6: =ROUND(IF(B6<=270000,0,IF(B6<=500000,(B6-250000)*0.1-2000,IF(B6<=1000000,25000+(B6-500000)*0.2,IF(B6>1000000,125000+(B6-1000000)*0.3,"0")))),0) -> 5220 | D6: =ROUND(IF(B6<=270000,0,IF(B6<=500000,(B6-250000)*0.1-2000,IF(B6<=1000000,25000+(B6-500000)*0.2,IF(B6>1000000,125000+(B6-1000000)*0.3,"0")))),0) -> 5220 | E6: =IF(B6>10000000,C6*0.12,0) -> 0 | F6: =ROUND(IF('us89(1)form'!$O$3=2,D6*0.02+D6*0.01,C6*0.02+C6*0.01),0) -> 157 | G6: =IF('us89(1)form'!$O$3=2,D6+E6+F6,C6+E6+F6) -> 5377
A8: Tax on income including arrears
A9: year | B9: amount | C9: tax for male | D9: tax for female | E9: surcharge | F9: edu. cess | G9: total
A10: 2011-12 | B10: =form10E!G32 -> 350000 | C10: =ROUND(IF(B10<=180000,0,IF(B10<=500000,(B10-180000)*0.1,IF(B10<=800000,32000+(B10-500000)*0.2,IF(B10>800000,92000+(B10-800000)*0.3,"0")))),0) -> 17000 | D10: =ROUND(IF(B10<=190000,0,IF(B10<=500000,(B10-190000)*0.1,IF(B10<=800000,31000+(B10-500000)*0.2,IF(B10>800000,91000+(B10-800000)*0.3,"0")))),0) -> 16000 | F10: =ROUND(IF('us89(1)form'!$O$3=2,D10*0.02+D10*0.01,C10*0.02+C10*0.01),0) -> 510 | G10: =IF('us89(1)form'!$O$3=2,D10+F10,C10+F10) -> 17510
A11: 2012-13 | B11: =form10E!G33 -> 425000 | C11: =ROUND(IF(B11<=200000,0,IF(B11<=500000,(B11-200000)*0.1,IF(B11<=1000000,30000+(B11-500000)*0.2,IF(B11>1000000,130000+(B11-1000000)*0.3,"0")))),0) -> 22500 | D11: =ROUND(IF(B11<=200000,0,IF(B11<=500000,(B11-200000)*0.1,IF(B11<=1000000,30000+(B11-500000)*0.2,IF(B11>1000000,130000+(B11-1000000)*0.3,"0")))),0) -> 22500 | F11: =ROUND(IF('us89(1)form'!$O$3=2,D11*0.02+D11*0.01,C11*0.02+C11*0.01),0) -> 675 | G11: =IF('us89(1)form'!$O$3=2,D11+F11,C11+F11) -> 23175
A12: 2013-14 | B12: =form10E!G34 -> 850300 | C12: =ROUND(IF(B12<=220000,0,IF(B12<=500000,(B12-200000)*0.1-2000,IF(B12<=1000000,30000+(B12-500000)*0.2,IF(B12>1000000,130000+(B12-1000000)*0.3,"0")))),0) -> 100060 | D12: =ROUND(IF(B12<=220000,0,IF(B12<=500000,(B12-200000)*0.1-2000,IF(B12<=1000000,30000+(B12-500000)*0.2,IF(B12>1000000,130000+(B12-1000000)*0.3,"0")))),0) -> 100060 | E12: =IF(B12>10000000,C12*0.1,0) -> 0 | F12: =ROUND(IF('us89(1)form'!$O$3=2,D12*0.02+D12*0.01,C12*0.02+C12*0.01),0) -> 3002 | G12: =IF('us89(1)form'!$O$3=2,D12+E12+F12,C12+E12+F12) -> 103062
A13: 2014-15 | B13: =form10E!G35 -> 452500 | C13: =ROUND(IF(B13<=270000,0,IF(B13<=500000,(B13-250000)*0.1-2000,IF(B13<=1000000,25000+(B13-500000)*0.2,IF(B13>1000000,125000+(B13-1000000)*0.3,"0")))),0) -> 18250 | D13: =ROUND(IF(B13<=270000,0,IF(B13<=500000,(B13-250000)*0.1-2000,IF(B13<=1000000,25000+(B13-500000)*0.2,IF(B13>1000000,125000+(B13-1000000)*0.3,"0")))),0) -> 18250 | E13: =IF(B13>10000000,C13*0.1,0) -> 0 | F13: =ROUND(IF('us89(1)form'!$O$3=2,D13*0.02+D13*0.01,C13*0.02+C13*0.01),0) -> 548 | G13: =IF('us89(1)form'!$O$3=2,D13+E13+F13,C13+E13+F13) -> 18798
A14: 2015-16 | B14: =form10E!L22 -> 400000 | C14: =ROUND(IF(B14<=270000,0,IF(B14<=500000,(B14-250000)*0.1-2000,IF(B14<=1000000,25000+(B14-500000)*0.2,IF(B14>1000000,125000+(B14-1000000)*0.3,"0")))),0) -> 13000 | D14: =ROUND(IF(B14<=270000,0,IF(B14<=500000,(B14-250000)*0.1-2000,IF(B14<=1000000,25000+(B14-500000)*0.2,IF(B14>1000000,125000+(B14-1000000)*0.3,"0")))),0) -> 13000 | E14: =IF(B14>10000000,C14*0.12,0) -> 0 | F14: =ROUND(IF('us89(1)form'!$O$3=2,D14*0.02+D14*0.01,C14*0.02+C14*0.01),0) -> 390 | G14: =IF('us89(1)form'!$O$3=2,D14+E14+F14,C14+E14+F14) -> 13390
